[Event "FIDE WCCC U12 2018"]
[Site "Santiago de Compostela"]
[Date "2018.11.11"]
[Round "7"]
[White "Akhmedinov, Satbek"]
[Black "Park, Evan"]
[Result "0-1"]
[ECO "C54"]
[WhiteElo "1856"]
[BlackElo "1997"]
[Annotator "NA RC"]
[PlyCount "134"]
[EventDate "2018.11.04"]
[EventType "swiss"]
[EventCountry "ESP"]
[SourceTitle "playchess.com"]
[Source "ChessBase"]
[SourceQuality "1"]
[TimeControl "40/5400+30:1800+30"]

1. e4 e5 {[%emt 0:00:00]} 2. Nf3 {[%emt 0:00:01]} Nc6 {[%emt 0:00:00]} 3. Bc4 Bc5 {[%emt 0:00:00]} 4. c3 {[%emt 0:00:36]} Nf6 {[%emt 0:00:00]} 5. d3 d6 6. a4 {[%emt 0:00:12]} a6 {[%emt 0:00:44]} 7. h3 {[%emt 0:00:13]} h6 {[%emt 0:00:36]} 8. b4 {[%emt 0:00:06]} Ba7 {[%emt 0:00:12]} 9. O-O {[%emt 0:00:06]} O-O {[%emt 0:00:52]} 10. Be3 {[%emt 0:07:42]} Be6 {[%emt 0:04:13]} 11. Bxa7 {[%emt 0:02:42]} Rxa7 {[%emt 0:01:50]} 12. Nbd2 {[%emt 0:06:59]} Ne7 {[%emt 0:05:38]} (12... Bxc4 $11 13. Nxc4 Ra8) 13. Qb3 {[%emt 0:11:04]} Bxc4 {[%emt 0:04:29]} 14. Nxc4 {[%emt 0:00:55]} Ng6 {[%emt 0:03:13]} 15. g3 {[%emt 0:07:20]} Re8 {[%emt 0:06:10]} 16. Ne3 {[%emt 0:01:13]} Qd7 {[%emt 0:03:32]} 17. Kh2 {[%emt 0:02:27]} c6 {[%emt 0:05:26]} 18. c4 {[%emt 0:15:54]} Raa8 {[%emt 0:02:54]} 19. Rad1 {[%emt 0:07:16]} Rad8 {[%emt 0:04:51]} 20. Ng1 {[%emt 0:04:54]} d5 {[%emt 0:03:39]} 21. f3 {[%emt 0:00:53]} Qe6 {[%emt 0:03:57]} 22. Ne2 {[%emt 0:02:59]} Rd7 {[%emt 0:04:10]} 23. exd5 {[%emt 0:00:32]} (23. c5 $11) 23... cxd5 {[%emt 0:00:14]} 24. c5 {[%emt 0:00:08]} b6 {[%emt 0:07:32]} 25. Rc1 {[%emt 0:02:34]} Rc7 {[%emt 0:06:36]} 26. Rfe1 {[%emt 0:02:42]} bxc5 {[%emt 0:03:21]} 27. bxc5 {[%emt 0:00:04] [#]} d4 $1 {[%emt 0:02:19]} 28. Qxe6 {[%emt 0:11:01]} Rxe6 {[%emt 0:00:54]} 29. Nc4 {[%emt 0:01:03]} (29. Nf5 $17) 29... Rxc5 {[%emt 0:01:27]} 30. Rb1 {[%emt 0:00:14]} Nd5 {[%emt 0:03:47]} 31. Rb8+ {[%emt 0:02:53]} Kh7 {[%emt 0:02:22]} 32. Nc1 {[%emt 0:00:13]} Rc7 {[%emt 0:06:57]} 33. Nb3 {[%emt 0:00:37] [#]} Ne3 $1 {[%emt 0:04:30]} 34. Nbd2 {[%emt 0:03:19]} Rf6 {[%emt 0:03:08]} 35. h4 {[%emt 0:04:03]} Nxc4 {[%emt 0:00:30]} 36. Nxc4 {[%emt 0:00:30]} Rxf3 37. h5 {[%emt 0:00:00]} Ne7 {[%emt 0:04:49]} 38. Nxe5 {[%emt 0:00:24]} Rf2+ {[%emt 0:00:34]} 39. Kh3 {[%emt 0:01:29]} Rcc2 {[%emt 0:02:21]} 40. Ng4 {[%emt 0:00:00]} Rf5 {[%emt 0:00:00]} 41. Nf6+ {[%emt 0:03:52]} Rxf6 {[%emt 0:03:40]} 42. Rxe7 {[%emt 0:00:07]} Rf5 {[%emt 0:01:09]} 43. Kg4 {[%emt 0:01:18]} Rcf2 {[%emt 0:02:02]} 44. Re4 {[%emt 0:04:52]} Rg5+ {[%emt 0:01:13]} 45. Kh3 {[%emt 0:00:55]} Rxh5+ {[%emt 0:00:09]} 46. Rh4 {[%emt 0:00:06]} Rxh4+ {[%emt 0:01:25]} 47. Kxh4 {[%emt 0:00:31]} f5 {[%emt 0:02:47]} 48. g4 {[%emt 0:03:04]} Rf4 {[%emt 0:00:57]} 49. Ra8 {[%emt 0:00:40]} Rxg4+ {[%emt 0:00:30]} 50. Kh3 {[%emt 0:00:05]} Rg1 {[%emt 0:02:05]} 51. Rxa6 {[%emt 0:00:27]} Rd1 {[%emt 0:00:15]} 52. Rd6 {[%emt 0:01:01]} Rxd3+ {[%emt 0:00:08]} 53. Kg2 {[%emt 0:00:04]} Ra3 {[%emt 0:01:31]} 54. Rxd4 {[%emt 0:00:09]} g5 {[%emt 0:00:12]} 55. Rd5 {[%emt 0:00:06]} Kg6 {[%emt 0:00:52]} 56. a5 {[%emt 0:00:04]} g4 {[%emt 0:00:17]} 57. Rd6+ {[%emt 0:00:15]} Kg5 {[%emt 0:00:06]} 58. a6 {[%emt 0:00:05]} h5 {[%emt 0:00:08]} 59. Rd5 {[%emt 0:00:50]} Rxa6 {[%emt 0:00:07]} 60. Rb5 {[%emt 0:00:04]} Ra2+ {[%emt 0:00:06]} 61. Kg1 {[%emt 0:00:15]} h4 {[%emt 0:00:07]} 62. Rb8 {[%emt 0:00:12]} h3 {[%emt 0:00:23]} 63. Rb3 $19 {[%emt 0:00:28]} f4 {[%emt 0:00:07]} 64. Rb1 {[%emt 0:00:18]} Kh4 {[%emt 0:00:06]} 65. Rc1 {[%emt 0:00:06]} Kg3 {[%emt 0:00:11]} 66. Kh1 {[%emt 0:00:08]} f3 {[%emt 0:00:12]} 67. Rg1+ {[%emt 0:00:09]} Rg2 {[%emt 0:00:11]} 0-1

[Event "FIDE WCCC U12 2018"]
[Site "Santiago de Compostela"]
[Date "2018.11.11"]
[Round "7"]
[White "Baranciuc, Alexandr"]
[Black "Hommer, Jeremy"]
[Result "1/2-1/2"]
[ECO "B15"]
[WhiteElo "1784"]
[BlackElo "1987"]
[Annotator "NA RC"]
[PlyCount "76"]
[EventDate "2018.11.04"]
[EventType "swiss"]
[EventCountry "ESP"]
[SourceTitle "playchess.com"]
[Source "ChessBase"]
[SourceQuality "1"]
[TimeControl "40/5400+30:1800+30"]

{[%evp 10,76,16,32767,10,-22,-14,-21,-13,-32,-46,-36,-12,32767,-40,-45,32767,-59,-57,32767,-32,32767,32767,-118,-16,32767,-13,32767,32767,32767,-20,-19,56,32767,32767,32767,52,32767,32767,32767,32767,32767,32767,32767,32767,32767,32767,32767,32767,32767,0,0,50,21,20,9,32767,32767,14,0,52,0,31,22,14,19,18,0,8]} 1. e4 {[%emt 0:00:03]} c6 {[%emt 0:00:00]} 2. d4 {[%emt 0:00:14]} d5 {[%emt 0:00:00]} 3. Nc3 {[%emt 0:00:44]} b5 {[%emt 0:00:00]} 4. exd5 {[%emt 0:08:31] B15: Caro-Kann: 3 Nc3: 3...g6 and 3...dxe4 4 Nxe4 Nf6 5 Nxf6+ exf6} (4. a3 dxe4 5. Nxe4 Nf6 6. Bd3 g6 7. Bg5 Bg7 8. Nf3 O-O 9. Qd2 Bf5 10. Nxf6+ exf6 11. Be3 Bxd3 12. Qxd3 Nd7 13. d5 {0-1 (41) Belyakov,B (2487)-Howell,D (2644) Doha 2016}) 4... b4 {[%emt 0:00:04]} 5. Nce2 {[%emt 0:00:08]} cxd5 {[%emt 0:00:44] LiveBook: 3 Games} 6. Nf3 {[%emt 0:03:02]} Nf6 {[%emt 0:03:42]} 7. Nf4 {[%emt 0:03:15]} e6 {[%emt 0:03:22]} 8. Bb5+ {[%emt 0:04:10]} Bd7 {[%emt 0:00:35]} 9. Bxd7+ $146 {[%emt 0:00:17]} ({Predecessor:} 9. Bd3 Nc6 10. O-O Bd6 11. Re1 O-O {1-0 (38) Mahdy,K (2332)-Hansen,K (2240) Vienna 1999}) 9... Nbxd7 {[%emt 0:00:50]} 10. O-O {[%emt 0:00:37]} Be7 {[%emt 0:04:28]} 11. Nd3 {[%emt 0:03:36]} O-O {[%emt 0:04:51]} 12. Nfe5 {[%emt 0:07:27]} Rc8 {[%emt 0:00:39]} 13. Bg5 {[%emt 0:03:49]} a5 {[%emt 0:05:36]} 14. Rc1 {[%emt 0:05:59]} Nb6 {[%emt 0:02:46]} 15. f4 {[%emt 0:05:43]} Nc4 {[%emt 0:10:02]} 16. f5 {[%emt 0:06:53]} ({White should play} 16. Bxf6 $15 gxf6 17. Nxc4 dxc4 18. Ne1) 16... Qb6 {[%emt 0:08:58]} ({Black should play} 16... exf5 $17 17. Rxf5 Nd6) 17. c3 {[%emt 0:07:42]} exf5 {[%emt 0:14:55]} 18. Bxf6 {[%emt 0:11:21]} Qxf6 {[%emt 0:05:31]} 19. Nd7 {[%emt 0:03:41]} Qh6 {[%emt 0:07:21]} 20. Nxf8 {[%emt 0:00:22]} Bd6 {[%emt 0:00:44]} (20... Rxf8 $11 21. Rf3 (21. Rxf5 bxc3 22. bxc3 Bg5 $15) 21... Bg5) 21. g3 {[%emt 0:07:19]} Ne3 {[%emt 0:07:24]} 22. Qd2 {[%emt 0:00:16]} Nxf1 {[%emt 0:00:42]} 23. Qxh6 {[%emt 0:00:04]} gxh6 {[%emt 0:00:20]} 24. Rxf1 {[%emt 0:00:14]} Bxf8 {[%emt 0:00:43]} 25. cxb4 {[%emt 0:00:09]} axb4 {[%emt 0:01:32]} 26. Rxf5 {[%emt 0:00:20]} Rc2 {[%emt 0:02:14]} 27. Rxd5 {[%emt 0:05:38]} Rd2 {[%emt 0:00:14]} 28. Nf4 {[%emt 0:00:21]} Rxb2 {[%emt 0:00:29]} 29. Ra5 {[%emt 0:00:21]} Kg7 {[%emt 0:05:38]} 30. Ra6 {[%emt 0:02:03]} Rb1+ {[%emt 0:05:16] [#]} 31. Kg2 {[%emt 0:00:21]} (31. Kf2 $1 $16) 31... Ra1 {[%emt 0:00:09]} 32. Nh5+ Kg8 {[%emt 0:00:31]} 33. Nf6+ {[%emt 0:01:27]} Kg7 {[%emt 0:00:27]} 34. Nh5+ Kg8 {[%emt 0:00:41]} 35. Nf6+ {[%emt 0:00:13]} Kh8 {[%emt 0:01:27]} 36. Ra8 {[%emt 0:00:45]} Kg7 {[%emt 0:00:19]} 37. Nh5+ Kg8 $1 {[%emt 0:00:52]} 38. Nf6+ {[%emt 0:00:12]} Kg7 $11 {[%emt 0:00:06]} 1/2-1/2

[Event "FIDE WCCC U12 2018"]
[Site "Santiago de Compostela"]
[Date "2018.11.11"]
[Round "7"]
[White "Del Prado Rodriguez, Xulio"]
[Black "Tyurin, Artem"]
[Result "1/2-1/2"]
[ECO "A05"]
[WhiteElo "1734"]
[BlackElo "2018"]
[Annotator "NA RC"]
[PlyCount "119"]
[EventDate "2018.11.04"]
[EventType "swiss"]
[EventCountry "ESP"]
[SourceTitle "playchess.com"]
[Source "ChessBase"]
[SourceQuality "1"]
[TimeControl "40/5400+30:1800+30"]

{[%evp 13,114,16,32767,11,20,32767,29,32767,11,20,23,17,32767,14,14,6,11,32767,16,10,32767,36,50,35,33,32767,31,15,18,32767,32767,32767,32767,35,32767,32767,62,32767,32767,41,32767,32767,32767,32767,32767,32767,32767,32767,32767,32767,32767,99,91,32767,107,107,89,0,67,32767,32767,125,119,101,179,175,149,182,238,32767,220,32767,207,315,216,118,130,108,118,113,112,65,162,167,166,102,92,0,221,216,32767,32767,32767,32767,32767,7,130,8,8,8,9,0,0]} 1. Nf3 {[%emt 0:00:00]} Nf6 {[%emt 0:00:00]} 2. c4 {[%emt 0:00:03]} g6 {[%emt 0:00:00]} 3. g3 {[%emt 0:00:12]} Bg7 {[%emt 0:00:00]} 4. Bg2 {[%emt 0:00:19]} O-O {[%emt 0:00:00]} 5. d4 {[%emt 0:02:06]} d5 {[%emt 0:00:04]} 6. cxd5 {[%emt 0:01:29]} Nxd5 {[%emt 0:02:04]} 7. Nc3 {[%emt 0:01:10]} Nb6 {[%emt 0:00:50]} 8. O-O {[%emt 0:00:39]} Nc6 {[%emt 0:00:11]} 9. e3 {[%emt 0:05:30]} Re8 {[%emt 0:00:26]} 10. b3 {[%emt 0:01:34]} e5 {[%emt 0:04:46]} 11. dxe5 {[%emt 0:05:36] D76: Fianchetto Grünfeld: Main Line with 7...Nb6} (11. Nxe5 Nxe5 12. dxe5 Bxe5 13. Bb2 Qe7 14. Qc2 c6 15. Rad1 Bg4 16. f3 Be6 17. f4 Bg7 18. e4 Rad8 19. e5 Bg4 20. Bf3 Rxd1 21. Qxd1 {0-1 (59) Giri,A (2784)-Vachier Lagrave,M (2773) London 2015 CBM 170 [Sagar Shah/CB Website]}) 11... Nxe5 {[%emt 0:04:18]} 12. Nxe5 {[%emt 0:01:56]} Qxd1 {[%emt 0:06:11]} 13. Rxd1 {[%emt 0:03:41]} Bxe5 {[%emt 0:00:41]} 14. Bb2 {[%emt 0:02:12]} c6 {[%emt 0:01:16]} 15. Rd2 {[%emt 0:06:50]} Bf5 {[%emt 0:08:27] LiveBook: 15 Games} 16. Ne2 {[%emt 0:07:45]} g5 $146 {[%emt 0:16:03]} ({Predecessor:} 16... Bxb2 17. Rxb2 a5 18. Nd4 Be4 {1-0 (65) Arkell,K (2406)-Toma,K (2274) Hull 2018}) 17. Bxe5 {[%emt 0:06:06]} Rxe5 {[%emt 0:00:42]} 18. Rad1 {[%emt 0:08:29]} Kg7 {[%emt 0:02:21]} 19. Nd4 {[%emt 0:05:40]} Bg6 {[%emt 0:01:31]} 20. Bf3 {[%emt 0:06:30]} h5 {[%emt 0:04:16]} 21. h4 {[%emt 0:04:24]} gxh4 {[%emt 0:02:13]} 22. gxh4 {[%emt 0:00:09]} a5 {[%emt 0:00:20]} 23. a4 {[%emt 0:02:31]} Kh6 {[%emt 0:07:42]} 24. Kh2 {[%emt 0:05:08]} Rae8 {[%emt 0:10:52]} 25. Ne2 {[%emt 0:03:12]} Be4 {[%emt 0:07:21]} 26. Rd6+ {[%emt 0:02:26]} Kh7 {[%emt 0:03:33]} 27. Bxe4+ {[%emt 0:01:05]} Rxe4 {[%emt 0:00:05]} 28. Nf4 {[%emt 0:00:17]} R8e5 {[%emt 0:01:38]} 29. R1d4 {[%emt 0:02:08]} Rxd4 {[%emt 0:02:10]} 30. Rxd4 {[%emt 0:00:09]} Kg7 {[%emt 0:01:41]} 31. Kg3 {[%emt 0:00:43]} Rc5 {[%emt 0:02:28]} 32. Rd8 {[%emt 0:01:44]} Nd5 {[%emt 0:03:11]} 33. Nxd5 {[%emt 0:07:08]} cxd5 $1 {[%emt 0:01:10]} 34. Rb8 {[%emt 0:00:53]} Rc7 {[%emt 0:00:27]} 35. Rd8 {[%emt 0:00:11]} Rc5 {[%emt 0:00:20]} 36. Rb8 {[%emt 0:02:29]} Rc7 {[%emt 0:00:03]} 37. Kf4 {[%emt 0:02:35]} Kf6 {[%emt 0:00:04]} 38. Rh8 {[%emt 0:00:08]} Rc3 {[%emt 0:00:39] [#]} (38... b5 $16) 39. Rh6+ $1 {[%emt 0:00:13]} Kg7 {[%emt 0:02:21] [#]} 40. Rb6 $1 {[%emt 0:00:00]} ({Don't play} 40. Rxh5 Rxb3 41. Rg5+ (41. Rxd5 Rb4+ 42. Rd4 b5 $16) 41... Kf6 $16) 40... Rc2 {[%emt 0:00:00]} 41. Kf3 {[%emt 0:02:27]} Rb2 {[%emt 0:16:17]} 42. Kg3 {[%emt 0:04:15]} Rd2 {[%emt 0:06:00]} (42... d4 $16) 43. Rxb7 {[%emt 0:01:29]} d4 {[%emt 0:00:11]} 44. exd4 {[%emt 0:00:50]} (44. Rb5 $18) 44... Rxd4 {[%emt 0:00:20]} 45. f3 {[%emt 0:03:37]} Rd3 {[%emt 0:01:45]} 46. Rb5 {[%emt 0:01:28]} Kg6 {[%emt 0:00:17]} 47. Kf4 {[%emt 0:01:20]} (47. Rg5+ Kh6 48. Rxa5 Rxb3) (47. Rxa5 Rxb3 48. Re5 f6 $16) 47... f6 {[%emt 0:04:11]} 48. Ke4 {[%emt 0:00:41]} Rc3 $1 $11 {[%emt 0:00:02] and Black stays safe.} 49. Rb6 {[%emt 0:01:27]} (49. f4 $18) 49... Rc1 {[%emt 0:01:13]} 50. Rb5 {[%emt 0:02:31]} (50. Kf4 $16) 50... Rb1 $2 {[%emt 0:00:19]} 51. Kd3 {[%emt 0:02:02]} ({But not} 51. Rxa5 $6 Rxb3 52. Rd5 Ra3 $16) 51... Rb2 {[%emt 0:01:42]} 52. Kc3 {[%emt 0:04:13]} Rh2 {[%emt 0:00:05]} 53. Rxa5 {[%emt 0:00:06]} Rxh4 {[%emt 0:00:05]} 54. Kd3 $2 {[%emt 0:01:08]} (54. Ra8 $18) 54... Rh1 {[%emt 0:00:18] [#]} ({Better is} 54... Rh3 $14) 55. Ke3 {[%emt 0:00:45]} (55. Ra8 $1 $16) 55... Rb1 {[%emt 0:00:19]} 56. Rb5 {[%emt 0:00:16]} h4 {[%emt 0:00:07]} 57. Kf4 {[%emt 0:01:32]} Rg1 $11 {[%emt 0:00:57]} 58. Rb8 {[%emt 0:02:19]} Kg7 {[%emt 0:00:34]} 59. Rb5 {[%emt 0:00:55]} Kg6 {[%emt 0:01:40]} 60. Ke3 1/2-1/2

[Event "FIDE WCCC U12 2018"]
[Site "Santiago de Compostela"]
[Date "2018.11.12"]
[Round "8"]
[White "Yu, Jason"]
[Black "Ristic, Luka"]
[Result "1/2-1/2"]
[ECO "B06"]
[WhiteElo "2097"]
[BlackElo "1897"]
[Annotator "NA RC"]
[PlyCount "96"]
[EventDate "2018.11.04"]
[EventType "swiss"]
[EventCountry "ESP"]
[SourceTitle "playchess.com"]
[Source "ChessBase"]
[SourceQuality "1"]
[TimeControl "40/5400+30:1800+30"]

{[%evp 38,96,-79,-115,-27,-133,-35,-43,-44,-48,-28,-46,-41,-33,32,26,81,0,27,0,13,3,0,32767,0,-15,32767,-15,0,-20,42,40,181,66,71,32767,89,61,129,116,104,32767,32767,32767,71,50,42,32767,32767,32767,32767,32,32767,32767,32767,32767,32767,0,0,0,0]} 1. e4 {[%emt 0:00:00]} g6 {[%emt 0:00:00]} 2. d4 {[%emt 0:00:00]} Bg7 {[%emt 0:00:01]} 3. Nc3 {[%emt 0:00:00]} c6 {[%emt 0:00:11]} 4. Nf3 {[%emt 0:00:00]} d5 {[%emt 0:00:06]} 5. e5 {[%emt 0:04:22]} Bg4 {[%emt 0:00:18]} 6. h3 {[%emt 0:03:49]} Bxf3 {[%emt 0:01:04]} 7. Qxf3 {[%emt 0:00:41]} e6 {[%emt 0:00:05]} 8. Bd3 {[%emt 0:04:15] B15: Caro-Kann: 3 Nc3: 3...g6 and 3...dxe4 4 Nxe4 Nf6 5 Nxf6+ exf6} a6 {[%emt 0:00:44]} 9. Ne2 {[%emt 0:03:13]} c5 {[%emt 0:01:14]} 10. c3 {[%emt 0:00:53]} Nc6 {[%emt 0:00:16]} 11. Be3 $146 {[%emt 0:03:07]} ({Predecessor:} 11. Bd2 Nge7 12. b3 cxd4 13. cxd4 {1-0 (57) Munoz Pantoja,M (2456)-Oms Fuentes,L (2288) Badalona 2013}) 11... cxd4 {[%emt 0:01:19]} 12. cxd4 {[%emt 0:02:40]} Bxe5 {[%emt 0:00:22]} 13. O-O-O {[%emt 0:02:01]} Bg7 {[%emt 0:00:44]} 14. h4 {[%emt 0:00:55]} Nb4 {[%emt 0:01:35]} 15. Bb1 {[%emt 0:02:43]} Qa5 {[%emt 0:00:57]} 16. Nc3 {[%emt 0:00:41]} Rc8 {[%emt 0:00:43]} 17. a3 {[%emt 0:01:20]} Nc6 {[%emt 0:01:16]} 18. h5 {[%emt 0:01:49]} g5 {[%emt 0:01:20]} 19. h6 {[%emt 0:01:54]} Bf8 {[%emt 0:07:31]} ({Much weaker is} 19... Bxh6 $6 {[#]} 20. Rxh6 $1 {[%mdl 512]} Nxh6 21. Qf6 $14) 20. Rd3 {[%emt 0:16:19]} Qd8 {[%emt 0:10:05]} ({Not} 20... Bxh6 {[#]} 21. Rxh6 $1 {[%mdl 512]} Nxh6 22. Qf6 $16) 21. Rh5 {[%emt 0:12:28] [#]} (21. Bc2 $11) 21... Qf6 {[%emt 0:11:48]} (21... g4 $1 $17 {[%cal Rg4f3][%mdl 512]} 22. Qe2 (22. Qxg4 Nf6) 22... Nf6) 22. Bxg5 {[%emt 0:10:40]} Qxf3 {[%emt 0:00:43]} 23. gxf3 {[%emt 0:01:24]} Bd6 {[%emt 0:02:54]} 24. Kd1 {[%emt 0:04:15]} f6 {[%emt 0:00:53]} 25. Bd2 {[%emt 0:01:33]} f5 {[%emt 0:01:09]} (25... Kf7 $15) 26. Re3 {[%emt 0:05:32]} Nxd4 {[%emt 0:05:52] [#]} 27. Nxd5 {[%emt 0:03:56]} (27. Ne2 $1 $16 {[%cal Re2d4]} f4 28. Rc3) 27... Ne7 {[%emt 0:04:19]} 28. Nxe7 {[%emt 0:02:05]} Bxe7 {[%emt 0:00:42]} 29. Bc3 {[%emt 0:02:03]} Rd8 {[%emt 0:01:17]} 30. Kc1 {[%emt 0:02:29]} Kf7 {[%emt 0:13:30]} 31. Ba2 {[%emt 0:01:05]} Kg6 {[%emt 0:00:27]} 32. Rh3 {[%emt 0:02:44]} Bg5 {[%emt 0:00:12]} 33. Kb1 {[%emt 0:00:20]} Bxe3 {[%emt 0:01:19]} 34. fxe3 {[%emt 0:00:01]} Nc6 {[%emt 0:08:38]} ({Better is} 34... Nb5 $1 $14 35. Rg3+ (35. Bxh8 Rxh8 36. Bxe6 Nd6 $14) 35... Kxh6 36. Bg7+ (36. Bxh8 Rxh8 37. Bxe6 Nd6 $14) 36... Kh5) 35. Bxh8 {[%emt 0:00:19]} (35. Bxe6 $18 Rhf8 36. Rg3+ Kxh6 37. Bg7+ Kh5 38. Bxf8 Rxf8 39. Rg7) 35... Rxh8 {[%emt 0:00:07]} 36. Bxe6 {[%emt 0:00:52]} Re8 {[%emt 0:03:09]} 37. Rg3+ {[%emt 0:00:37]} Kxh6 {[%emt 0:00:50]} (37... Kf6 $1 $14 38. Bg8 Rxe3) 38. Bxf5 {[%emt 0:00:24]} Rxe3 {[%emt 0:00:17]} 39. Rh3+ {[%emt 0:00:32]} Kg5 {[%emt 0:00:06]} 40. Bxh7 {[%emt 0:00:00]} Nd4 {[%emt 0:00:00]} 41. Be4 {[%emt 0:01:46]} b5 $1 {[%emt 0:00:58]} 42. Bb7 {[%emt 0:16:50]} a5 {[%emt 0:00:19]} 43. Rg3+ {[%emt 0:00:37]} Kf4 {[%emt 0:04:37]} 44. Rg4+ {[%emt 0:01:59]} Ke5 {[%emt 0:00:08]} 45. Re4+ {[%emt 0:01:27]} Rxe4 {[%emt 0:00:04]} 46. Bxe4 {[%emt 0:00:37]} Kf4 {[%emt 0:00:29]} 47. b4 {[%emt 0:01:52]} axb4 $11 {[%emt 0:02:03]} 48. axb4 {[%emt 0:00:09]} Nxf3 {[%emt 0:00:15]} 1/2-1/2

[Event "FIDE WCCC U12 2018"]
[Site "Santiago de Compostela"]
[Date "2018.11.12"]
[Round "8"]
[White "Mekhane, Adam"]
[Black "Baranciuc, Alexandr"]
[Result "1/2-1/2"]
[ECO "B18"]
[WhiteElo "2065"]
[BlackElo "1784"]
[Annotator "NA RC"]
[PlyCount "84"]
[EventDate "2018.11.04"]
[EventType "swiss"]
[EventCountry "ESP"]
[SourceTitle "playchess.com"]
[Source "ChessBase"]
[SourceQuality "1"]
[TimeControl "40/5400+30:1800+30"]

{[%evp 24,84,12,-22,-4,-22,32767,-19,-19,-63,-52,-120,-117,-155,-100,-97,-99,-99,-100,-104,-105,-107,-123,-105,32767,-129,-101,-100,-96,-101,32767,-102,-111,-114,-101,-137,32767,32767,32767,32767,-154,-213,-115,-187,-183,-194,-292,32767,32767,-280,-264,-418,32767,32767,-221,-251,32767,-277,32767,-239,32767,-414,-555]} 1. e4 {[%emt 0:00:00]} c6 {[%emt 0:00:10]} 2. d4 {[%emt 0:00:00]} d5 {[%emt 0:00:15]} 3. Nc3 {[%emt 0:00:06]} dxe4 {[%emt 0:00:26]} 4. Nxe4 {[%emt 0:00:12]} Bf5 {[%emt 0:00:29]} 5. Ng3 {[%emt 0:00:07]} Bg6 {[%emt 0:00:20]} 6. Bc4 {[%emt 0:00:35]} e6 {[%emt 0:00:39]} 7. N1e2 {[%emt 0:00:59]} Nf6 {[%emt 0:00:46]} 8. h4 {[%emt 0:05:39]} h6 {[%emt 0:00:32]} 9. Nf4 {[%emt 0:01:42]} Bh7 {[%emt 0:06:03]} 10. c3 {[%emt 0:05:07]} Bd6 {[%emt 0:03:47]} 11. Qe2 {[%emt 0:06:53]} O-O {[%emt 0:02:22] B18: Classical Caro-Kann: 4...Bf5 sidelines} 12. Bd2 {[%emt 0:04:49]} (12. Ngh5 Nbd7 13. Nxf6+ Nxf6 14. Bd2 Qc7 15. Nd3 Rae8 16. O-O Ne4 17. Rae1 Bh2+ 18. Kh1 Bg3 19. Be3 {1-0 (69) Zelcic,R (2569)-Rombaldoni,D (2418) Bergamo 2009}) 12... Nd5 $146 {[%emt 0:15:01]} ({Predecessor:} 12... Re8 13. O-O-O Nbd7 14. Qf3 e5 15. Nfh5 e4 16. Qe2 b5 17. Bb3 a5 18. Bc2 Qc7 19. Nxf6+ Nxf6 {0-1 (33) Valenti,G (2252)-Eperjesi,L (2224) Budapest 2006}) 13. Qg4 {[%emt 0:08:00]} Nxf4 {[%emt 0:06:16]} 14. Bxf4 {[%emt 0:01:08]} Bxf4 {[%emt 0:00:15]} 15. Qxf4 {[%emt 0:00:38]} Nd7 {[%emt 0:06:00]} 16. Nh5 {[%emt 0:07:09]} (16. Rd1 $11) 16... Bg6 {[%emt 0:06:34]} 17. g4 {[%emt 0:03:27] [#]} e5 $1 {[%emt 0:06:25]} 18. Qd2 {[%emt 0:06:26]} exd4 {[%emt 0:07:10]} 19. O-O-O {[%emt 0:10:12]} Ne5 {[%emt 0:00:53]} 20. Qxd4 {[%emt 0:04:21]} Qxd4 {[%emt 0:00:48]} 21. Rxd4 {[%emt 0:00:15] [#]} Nxg4 $1 {[%emt 0:13:14]} 22. Rxg4 {[%emt 0:04:27]} Bxh5 {[%emt 0:00:01]} 23. Rf4 {[%emt 0:03:23]} Rae8 {[%emt 0:02:47]} 24. Kd2 {[%emt 0:07:14]} b5 {[%emt 0:01:08]} 25. Bd3 {[%emt 0:00:53]} Re5 {[%emt 0:01:56]} 26. Re1 {[%emt 0:02:48]} Rxe1 {[%emt 0:00:18]} 27. Kxe1 {[%emt 0:00:00]} Rd8 {[%emt 0:00:10]} 28. Bc2 {[%emt 0:00:19]} Kf8 {[%emt 0:00:20]} 29. Rd4 {[%emt 0:04:36]} Rxd4 {[%emt 0:01:48]} 30. cxd4 {[%emt 0:00:03]} Ke7 {[%emt 0:00:11]} 31. Be4 {[%emt 0:02:41]} Kd6 {[%emt 0:00:07]} 32. b4 {[%emt 0:00:25] [#]} Bg4 {[%emt 0:02:09]} (32... f5 $1 $19 {[%mdl 512]} 33. Bxf5 Kd5) 33. Kd2 {[%emt 0:01:30]} (33. f4 $17) 33... f5 {[%emt 0:00:08]} 34. Bc2 {[%emt 0:01:57]} f4 {[%emt 0:04:56]} 35. Bg6 {[%emt 0:03:35]} Bf3 {[%emt 0:00:09]} 36. a3 {[%emt 0:00:58]} Ke6 {[%emt 0:00:56]} 37. Kd3 {[%emt 0:02:58]} (37. h5 $142) 37... Kf6 {[%emt 0:02:57]} 38. h5 {[%emt 0:00:37]} Kg5 {[%emt 0:01:01]} 39. Be8 {[%emt 0:00:00]} Kh4 {[%emt 0:00:00]} 40. Kd2 {[%emt 0:00:00]} Be4 {[%emt 0:00:00]} 41. Ke2 {[%emt 0:04:39]} Kg5 {[%emt 0:11:09]} 42. f3 $19 {[%emt 0:05:57]} (42. Kd2 {war die einzige Chance.}) 42... Bd5 {[%emt 0:00:05]} 1/2-1/2